[Event "Late-Titled-Tuesday-Blitz-April-23-2024"]
[Site "Chess.com"]
[Date "2024.04.23"]
[Round "8"]
[White "rikchessmx"]
[Black "katharinareinecke"]
[Result "1/2-1/2"]
[WhiteElo "2296"]
[BlackElo "2062"]
[TimeControl "180+1"]
[EndTime "15:29:26 PDT"]
[Termination "Game drawn by repetition"]

1. e4 {[%clk 0:02:56.3]} 1... c6 {[%clk 0:02:59.9]} 2. Nc3 {[%clk 0:02:54.6]}
2... d5 {[%clk 0:02:59.7]} 3. Nf3 {[%clk 0:02:53.8]} 3... Bg4 {[%clk 0:02:59]}
4. exd5 {[%clk 0:02:52.6]} 4... cxd5 {[%clk 0:02:58.9]} 5. d4 {[%clk 0:02:53.2]}
5... Nc6 {[%clk 0:02:57.6]} 6. Be2 {[%clk 0:02:53.9]} 6... e6 {[%clk 0:02:57.3]}
7. O-O {[%clk 0:02:53.9]} 7... Bd6 {[%clk 0:02:56.6]} 8. Nb5 {[%clk 0:02:52.3]}
8... Bb8 {[%clk 0:02:51.1]} 9. c3 {[%clk 0:02:50.7]} 9... a6 {[%clk 0:02:50.7]}
10. Na3 {[%clk 0:02:50.2]} 10... Bd6 {[%clk 0:02:50.2]} 11. Nc2 {[%clk
0:02:49.2]} 11... Nf6 {[%clk 0:02:48.5]} 12. Bg5 {[%clk 0:02:48.5]} 12... O-O
{[%clk 0:02:47.8]} 13. Ne3 {[%clk 0:02:48.2]} 13... Bh5 {[%clk 0:02:43.4]} 14.
Nh4 {[%clk 0:02:40.3]} 14... Bxe2 {[%clk 0:02:38.7]} 15. Qxe2 {[%clk 0:02:41.2]}
15... h6 {[%clk 0:02:32.5]} 16. Bxf6 {[%clk 0:02:36.6]} 16... Qxf6 {[%clk
0:02:33.4]} 17. Nf3 {[%clk 0:02:36.2]} 17... b5 {[%clk 0:02:32.2]} 18. a3 {[%clk
0:02:35.6]} 18... Na5 {[%clk 0:02:28.7]} 19. Ng4 {[%clk 0:02:35.1]} 19... Qg6
{[%clk 0:02:19.7]} 20. Nge5 {[%clk 0:02:34.8]} 20... Bxe5 {[%clk 0:02:15.2]} 21.
Nxe5 {[%clk 0:02:34.4]} 21... Qf5 {[%clk 0:02:13.5]} 22. f4 {[%clk 0:02:30.9]}
22... Nc4 {[%clk 0:02:11.5]} 23. h3 {[%clk 0:02:23.9]} 23... a5 {[%clk
0:01:47.8]} 24. b3 {[%clk 0:01:59.6]} 24... Nd6 {[%clk 0:01:46.5]} 25. Nd7
{[%clk 0:01:55.4]} 25... Rfd8 {[%clk 0:01:42]} 26. Nc5 {[%clk 0:01:54.7]} 26...
b4 {[%clk 0:01:35.1]} 27. axb4 {[%clk 0:01:50.9]} 27... axb4 {[%clk 0:01:34.9]}
28. cxb4 {[%clk 0:01:48.9]} 28... Ne4 {[%clk 0:01:25.2]} 29. g4 {[%clk
0:01:31.3]} 29... Qh7 {[%clk 0:01:18]} 30. Kh2 {[%clk 0:01:15.6]} 30... h5
{[%clk 0:01:10]} 31. g5 {[%clk 0:01:12.2]} 31... Qf5 {[%clk 0:01:09.1]} 32. b5
{[%clk 0:01:07.4]} 32... g6 {[%clk 0:01:05.6]} 33. b6 {[%clk 0:01:06.5]} 33...
Rxa1 {[%clk 0:01:01.1]} 34. Rxa1 {[%clk 0:01:05.7]} 34... Nxc5 {[%clk 0:00:45]}
35. dxc5 {[%clk 0:01:04.3]} 35... d4 {[%clk 0:00:45.3]} 36. Qe5 {[%clk
0:00:53.1]} 36... Qc2+ {[%clk 0:00:39.1]} 37. Kh1 {[%clk 0:00:52.1]} 37... Qxb3
{[%clk 0:00:36.3]} 38. Ra7 {[%clk 0:00:32.1]} 38... Qxh3+ {[%clk 0:00:35.1]} 39.
Kg1 {[%clk 0:00:32]} 39... Qg3+ {[%clk 0:00:25.3]} 40. Kf1 {[%clk 0:00:31.4]}
40... Qd3+ {[%clk 0:00:24.3]} 41. Kf2 {[%clk 0:00:30.9]} 41... Qd2+ {[%clk
0:00:22.5]} 42. Kf1 {[%clk 0:00:30.2]} 42... Qd1+ {[%clk 0:00:20.5]} 43. Kf2
{[%clk 0:00:30.1]} 43... Qd2+ {[%clk 0:00:20.6]} 44. Kf3 {[%clk 0:00:27.6]}
44... Qd3+ {[%clk 0:00:20.2]} 45. Kf2 {[%clk 0:00:25.9]} 45... Qd2+ {[%clk
0:00:17.1]} 1/2-1/2

[Event "Late-Titled-Tuesday-Blitz-April-23-2024"]
[Site "Chess.com"]
[Date "2024.04.23"]
[Round "8"]
[White "chucksterf10"]
[Black "PapaieDudu"]
[Result "1-0"]
[WhiteElo "2625"]
[BlackElo "2450"]
[TimeControl "180+1"]
[EndTime "15:29:27 PDT"]
[Termination "chucksterf10 won by resignation"]

1. c3 {[%clk 0:02:59.4]} 1... d5 {[%clk 0:02:59.8]} 2. Nf3 {[%clk 0:02:59.3]}
2... Nf6 {[%clk 0:03:00.1]} 3. d4 {[%clk 0:02:59.3]} 3... c5 {[%clk 0:03:00.4]}
4. dxc5 {[%clk 0:02:59.2]} 4... Nc6 {[%clk 0:02:58.4]} 5. b4 {[%clk 0:02:59.3]}
5... a6 {[%clk 0:02:54.3]} 6. Bb2 {[%clk 0:02:52.2]} 6... e5 {[%clk 0:02:53.4]}
7. e3 {[%clk 0:02:52.4]} 7... Bg4 {[%clk 0:02:52.3]} 8. Be2 {[%clk 0:02:50.5]}
8... Be7 {[%clk 0:02:52.1]} 9. Nbd2 {[%clk 0:02:49.9]} 9... O-O {[%clk
0:02:51.7]} 10. h3 {[%clk 0:02:50]} 10... Bf5 {[%clk 0:02:50.4]} 11. O-O {[%clk
0:02:49.4]} 11... h6 {[%clk 0:02:50.2]} 12. a4 {[%clk 0:02:48.7]} 12... e4
{[%clk 0:02:33.7]} 13. Nd4 {[%clk 0:02:48]} 13... Bd7 {[%clk 0:02:28.8]} 14.
Nxc6 {[%clk 0:02:37.7]} 14... bxc6 {[%clk 0:02:21.4]} 15. c4 {[%clk 0:02:35.7]}
15... a5 {[%clk 0:02:05.7]} 16. cxd5 {[%clk 0:01:58.8]} 16... cxd5 {[%clk
0:02:04.8]} 17. b5 {[%clk 0:01:37.9]} 17... Bxc5 {[%clk 0:02:00.4]} 18. Nb3
{[%clk 0:01:38.5]} 18... Bb4 {[%clk 0:01:33.7]} 19. Qd4 {[%clk 0:01:33.1]} 19...
Rc8 {[%clk 0:01:23.2]} 20. Rac1 {[%clk 0:01:32.7]} 20... Qe7 {[%clk 0:01:18.8]}
21. Bc3 {[%clk 0:01:18.7]} 21... Bxc3 {[%clk 0:01:04.8]} 22. Rxc3 {[%clk
0:01:19.6]} 22... Qa3 {[%clk 0:00:44.4]} 23. Nc5 {[%clk 0:01:15.9]} 23... Qb2
{[%clk 0:00:29.7]} 24. Re1 {[%clk 0:01:11.6]} 24... Be6 {[%clk 0:00:29.8]} 25.
Bf1 {[%clk 0:00:54.6]} 25... Rfe8 {[%clk 0:00:23.4]} 26. Rec1 {[%clk 0:00:54.5]}
26... Qb4 {[%clk 0:00:13.5]} 27. Nxe6 {[%clk 0:00:52.2]} 27... Rxc3 {[%clk
0:00:12.2]} 28. Rxc3 {[%clk 0:00:48.7]} 28... fxe6 {[%clk 0:00:10.6]} 29. Qxb4
{[%clk 0:00:47.8]} 29... axb4 {[%clk 0:00:11.5]} 30. Rb3 {[%clk 0:00:48.6]}
30... d4 {[%clk 0:00:10.2]} 31. exd4 {[%clk 0:00:43.4]} 31... Nd5 {[%clk
0:00:10.4]} 32. Bc4 {[%clk 0:00:43.5]} 32... Nf4 {[%clk 0:00:02.4]} 33. Rxb4
{[%clk 0:00:42.2]} 33... Kf7 {[%clk 0:00:02.8]} 34. b6 {[%clk 0:00:42.1]} 34...
Kf6 {[%clk 0:00:02.7]} 35. b7 {[%clk 0:00:42.2]} 35... Rb8 {[%clk 0:00:03.3]}
36. a5 {[%clk 0:00:42.8]} 36... Nd5 {[%clk 0:00:01.7]} 37. Bxd5 {[%clk
0:00:42.7]} 37... e3 {[%clk 0:00:02]} 38. a6 {[%clk 0:00:43.6]} 38... e2 {[%clk
0:00:02.6]} 39. Rb1 {[%clk 0:00:42.6]} 39... exd5 {[%clk 0:00:03]} 40. f3 {[%clk
0:00:40]} 40... Ke7 {[%clk 0:00:03.4]} 41. Kf2 {[%clk 0:00:40.1]} 41... Kd7
{[%clk 0:00:04.1]} 42. a7 {[%clk 0:00:40.2]} 42... Re8 {[%clk 0:00:03.5]} 43.
b8=Q {[%clk 0:00:39.5]} 1-0

[Event "Late-Titled-Tuesday-Blitz-April-23-2024"]
[Site "Chess.com"]
[Date "2024.04.23"]
[Round "8"]
[White "prochn"]
[Black "kai_nov"]
[Result "1-0"]
[WhiteElo "2469"]
[BlackElo "2276"]
[TimeControl "180+1"]
[EndTime "15:29:27 PDT"]
[Termination "prochn won by checkmate"]

1. d4 {[%clk 0:03:00.9]} 1... d5 {[%clk 0:02:56.3]} 2. c4 {[%clk 0:03:00.8]}
2... e6 {[%clk 0:02:56.3]} 3. Nf3 {[%clk 0:03:00.1]} 3... c6 {[%clk 0:02:56.5]}
4. g3 {[%clk 0:02:59.9]} 4... dxc4 {[%clk 0:02:55.8]} 5. Bg2 {[%clk 0:02:59.8]}
5... b5 {[%clk 0:02:56]} 6. a4 {[%clk 0:02:48.8]} 6... Bb7 {[%clk 0:02:52.8]} 7.
O-O {[%clk 0:02:47.8]} 7... Nd7 {[%clk 0:02:47]} 8. b3 {[%clk 0:02:47.1]} 8...
cxb3 {[%clk 0:02:35]} 9. Nbd2 {[%clk 0:02:42.5]} 9... Ngf6 {[%clk 0:02:25.9]}
10. Nxb3 {[%clk 0:02:42.4]} 10... Bd6 {[%clk 0:02:18.2]} 11. Bb2 {[%clk
0:02:22.5]} 11... bxa4 {[%clk 0:01:56.7]} 12. Rxa4 {[%clk 0:02:21.8]} 12... c5
{[%clk 0:01:56.8]} 13. Qa1 {[%clk 0:02:09]} 13... O-O {[%clk 0:01:33]} 14. Rd1
{[%clk 0:02:03.5]} 14... Qe7 {[%clk 0:00:24.8]} 15. Ne5 {[%clk 0:01:11.8]} 15...
Bxg2 {[%clk 0:00:21.5]} 16. Kxg2 {[%clk 0:01:12.7]} 16... Bxe5 {[%clk
0:00:16.5]} 17. dxe5 {[%clk 0:01:13]} 17... Nd5 {[%clk 0:00:16.7]} 18. Rxa7
{[%clk 0:01:02.6]} 18... Rxa7 {[%clk 0:00:16.4]} 19. Qxa7 {[%clk 0:01:02.8]}
19... Rc8 {[%clk 0:00:14.2]} 20. e4 {[%clk 0:00:54.4]} 20... N5b6 {[%clk
0:00:14.1]} 21. Ba3 {[%clk 0:00:50.9]} 21... Qe8 {[%clk 0:00:13.4]} 22. Nxc5
{[%clk 0:00:35.7]} 22... Ra8 {[%clk 0:00:12.7]} 23. Qb7 {[%clk 0:00:31.6]} 23...
Rxa3 {[%clk 0:00:12.7]} 24. Nxd7 {[%clk 0:00:30.7]} 24... Nxd7 {[%clk
0:00:12.8]} 25. Rxd7 {[%clk 0:00:29.6]} 25... g6 {[%clk 0:00:12.8]} 26. Qc7
{[%clk 0:00:22.5]} 26... Ra8 {[%clk 0:00:11.9]} 27. h4 {[%clk 0:00:21.9]} 27...
h5 {[%clk 0:00:11.5]} 28. Qd6 {[%clk 0:00:20.9]} 28... Kg7 {[%clk 0:00:11.1]}
29. Kh3 {[%clk 0:00:19]} 29... Rc8 {[%clk 0:00:09.9]} 30. f3 {[%clk 0:00:17.4]}
30... Qf8 {[%clk 0:00:09.7]} 31. Qxe6 {[%clk 0:00:14.6]} 31... Qa3 {[%clk
0:00:08.2]} 32. Qxf7+ {[%clk 0:00:14.3]} 32... Kh6 {[%clk 0:00:08.2]} 33. Qg7#
{[%clk 0:00:14.4]} 1-0

[Event "Late-Titled-Tuesday-Blitz-April-23-2024"]
[Site "Chess.com"]
[Date "2024.04.23"]
[Round "8"]
[White "Horokoskii"]
[Black "A4RookA3"]
[Result "1-0"]
[WhiteElo "2189"]
[BlackElo "2344"]
[TimeControl "180+1"]
[EndTime "15:29:30 PDT"]
[Termination "Horokoskii won by checkmate"]

1. c4 {[%clk 0:03:00.9]} 1... Nf6 {[%clk 0:03:00.7]} 2. Nc3 {[%clk 0:02:59.2]}
2... g6 {[%clk 0:02:58.8]} 3. d4 {[%clk 0:02:57.7]} 3... d5 {[%clk 0:02:58.1]}
4. Nf3 {[%clk 0:02:57.9]} 4... Bg7 {[%clk 0:02:57.9]} 5. Bf4 {[%clk 0:02:57.1]}
5... O-O {[%clk 0:02:57.4]} 6. e3 {[%clk 0:02:57]} 6... c5 {[%clk 0:02:56.5]} 7.
dxc5 {[%clk 0:02:56.7]} 7... Qa5 {[%clk 0:02:57.1]} 8. Rc1 {[%clk 0:02:51.5]}
8... Ne4 {[%clk 0:02:56.2]} 9. cxd5 {[%clk 0:02:48.2]} 9... Rd8 {[%clk
0:02:22.1]} 10. Qd3 {[%clk 0:02:26.5]} 10... Bf5 {[%clk 0:02:04.5]} 11. Qc4
{[%clk 0:02:19.2]} 11... Nd7 {[%clk 0:01:29.2]} 12. b4 {[%clk 0:02:17.4]} 12...
Bxc3+ {[%clk 0:01:18.2]} 13. Rxc3 {[%clk 0:02:16.7]} 13... b5 {[%clk 0:00:58.7]}
14. bxa5 {[%clk 0:02:11.7]} 14... bxc4 {[%clk 0:00:59.6]} 15. Rxc4 {[%clk
0:02:12]} 15... Ndxc5 {[%clk 0:00:55.2]} 16. Be2 {[%clk 0:02:07.1]} 16... Rxd5
{[%clk 0:00:54.4]} 17. O-O {[%clk 0:02:06.2]} 17... Rad8 {[%clk 0:00:52.2]} 18.
Nd4 {[%clk 0:02:05.1]} 18... Bd7 {[%clk 0:00:39.9]} 19. f3 {[%clk 0:02:02.7]}
19... Nd2 {[%clk 0:00:38.3]} 20. Rc2 {[%clk 0:01:59]} 20... Nxf1 {[%clk
0:00:27]} 21. Bxf1 {[%clk 0:01:52.2]} 21... e5 {[%clk 0:00:26.9]} 22. Bc4 {[%clk
0:01:47]} 22... Rxd4 {[%clk 0:00:21.9]} 23. exd4 {[%clk 0:01:46]} 23... exf4
{[%clk 0:00:18.7]} 24. dxc5 {[%clk 0:01:45.4]} 24... Rc8 {[%clk 0:00:19.3]} 25.
Bd5 {[%clk 0:01:41.6]} 25... Bc6 {[%clk 0:00:18.1]} 26. Bxc6 {[%clk 0:01:39]}
26... Rxc6 {[%clk 0:00:19]} 27. Kf2 {[%clk 0:01:36.3]} 27... f6 {[%clk
0:00:16.5]} 28. Ke2 {[%clk 0:01:36]} 28... Kf7 {[%clk 0:00:17.2]} 29. Kd3 {[%clk
0:01:36.4]} 29... Ke6 {[%clk 0:00:17.9]} 30. Kc4 {[%clk 0:01:36]} 30... a6
{[%clk 0:00:18.4]} 31. Rb2 {[%clk 0:01:32.9]} 31... Ke5 {[%clk 0:00:16.4]} 32.
Re2+ {[%clk 0:01:31.1]} 32... Kf5 {[%clk 0:00:15]} 33. Kd5 {[%clk 0:01:29.3]}
33... Rc8 {[%clk 0:00:14.6]} 34. c6 {[%clk 0:01:20.6]} 34... Rd8+ {[%clk
0:00:14.7]} 35. Kc5 {[%clk 0:01:20.8]} 35... Rd1 {[%clk 0:00:15.6]} 36. c7
{[%clk 0:01:17.7]} 36... Kg5 {[%clk 0:00:16.5]} 37. Kb6 {[%clk 0:01:15.1]} 37...
Rb1+ {[%clk 0:00:15.4]} 38. Kxa6 {[%clk 0:01:15.3]} 38... Rc1 {[%clk 0:00:16.3]}
39. Kb7 {[%clk 0:01:15.2]} 39... Rb1+ {[%clk 0:00:16.7]} 40. Ka7 {[%clk
0:01:15.2]} 40... Rc1 {[%clk 0:00:17.6]} 41. Kb8 {[%clk 0:01:05.8]} 41... Rb1+
{[%clk 0:00:16.7]} 42. Kc8 {[%clk 0:01:04]} 42... Rc1 {[%clk 0:00:16.2]} 43. Re6
{[%clk 0:01:02.4]} 43... Kf5 {[%clk 0:00:11.3]} 44. Rb6 {[%clk 0:01:02.7]} 44...
Kg5 {[%clk 0:00:06.1]} 45. Kb7 {[%clk 0:01:02.7]} 45... Kh4 {[%clk 0:00:06.8]}
46. c8=Q {[%clk 0:01:02.4]} 46... Rxc8 {[%clk 0:00:07.7]} 47. Kxc8 {[%clk
0:01:03]} 47... h5 {[%clk 0:00:08.6]} 48. a6 {[%clk 0:01:03.1]} 48... g5 {[%clk
0:00:08.3]} 49. a7 {[%clk 0:01:01.1]} 49... f5 {[%clk 0:00:03.9]} 50. a8=Q
{[%clk 0:00:59.5]} 50... g4 {[%clk 0:00:03]} 51. Kb7 {[%clk 0:00:56.7]} 51... g3
{[%clk 0:00:01.2]} 52. Qd8# {[%clk 0:00:56]} 1-0

[Event "Late-Titled-Tuesday-Blitz-April-23-2024"]
[Site "Chess.com"]
[Date "2024.04.23"]
[Round "8"]
[White "JG-17"]
[Black "Casablanca"]
[Result "0-1"]
[WhiteElo "2551"]
[BlackElo "2700"]
[TimeControl "180+1"]
[EndTime "15:29:33 PDT"]
[Termination "Casablanca won by checkmate"]

1. d4 {[%clk 0:03:00.9]} 1... Nf6 {[%clk 0:02:59.2]} 2. Nf3 {[%clk 0:03:01]}
2... e6 {[%clk 0:02:59.3]} 3. g3 {[%clk 0:03:01.2]} 3... b6 {[%clk 0:02:59.7]}
4. Bg2 {[%clk 0:03:01.6]} 4... Bb7 {[%clk 0:03:00.6]} 5. O-O {[%clk 0:03:02]}
5... c5 {[%clk 0:03:00.9]} 6. c4 {[%clk 0:03:01.4]} 6... cxd4 {[%clk 0:03:01.2]}
7. Nxd4 {[%clk 0:03:01.3]} 7... Bxg2 {[%clk 0:03:02.1]} 8. Kxg2 {[%clk
0:03:01.9]} 8... Qc7 {[%clk 0:03:02.2]} 9. Qd3 {[%clk 0:03:00.1]} 9... Nc6
{[%clk 0:03:00.6]} 10. Nc3 {[%clk 0:02:49.9]} 10... Nxd4 {[%clk 0:03:00]} 11.
Qxd4 {[%clk 0:02:50.8]} 11... Bc5 {[%clk 0:02:58.9]} 12. Qd3 {[%clk 0:02:48.2]}
12... O-O {[%clk 0:02:57.4]} 13. Rd1 {[%clk 0:02:37.5]} 13... Rfd8 {[%clk
0:02:56.5]} 14. Bg5 {[%clk 0:02:33.3]} 14... Be7 {[%clk 0:02:56.6]} 15. Rac1
{[%clk 0:02:24.5]} 15... Rac8 {[%clk 0:02:55.2]} 16. Bxf6 {[%clk 0:02:12.8]}
16... Bxf6 {[%clk 0:02:54.5]} 17. Ne4 {[%clk 0:02:11.2]} 17... Be7 {[%clk
0:02:50.6]} 18. Nd6 {[%clk 0:02:07.1]} 18... Bxd6 {[%clk 0:02:40]} 19. Qxd6
{[%clk 0:02:07.2]} 19... Qxd6 {[%clk 0:02:33.2]} 20. Rxd6 {[%clk 0:02:08.1]}
20... Rc6 {[%clk 0:02:33.7]} 21. Rcd1 {[%clk 0:02:03.8]} 21... Rxd6 {[%clk
0:02:34.1]} 22. Rxd6 {[%clk 0:02:03.9]} 22... Kf8 {[%clk 0:02:35]} 23. Kf3
{[%clk 0:02:01.6]} 23... Ke7 {[%clk 0:02:35.3]} 24. Rd2 {[%clk 0:02:01.1]} 24...
Rc8 {[%clk 0:02:35.5]} 25. b3 {[%clk 0:02:01.3]} 25... f5 {[%clk 0:02:29.3]} 26.
e4 {[%clk 0:02:00.7]} 26... fxe4+ {[%clk 0:02:29]} 27. Kxe4 {[%clk 0:02:00.9]}
27... a6 {[%clk 0:02:26.5]} 28. f4 {[%clk 0:01:51.7]} 28... b5 {[%clk
0:02:24.3]} 29. cxb5 {[%clk 0:01:46.8]} 29... axb5 {[%clk 0:02:25.2]} 30. Kd4
{[%clk 0:01:43.5]} 30... g6 {[%clk 0:02:16.1]} 31. a4 {[%clk 0:01:40.2]} 31...
bxa4 {[%clk 0:01:33.4]} 32. bxa4 {[%clk 0:01:41.1]} 32... Ra8 {[%clk 0:01:30]}
33. Ra2 {[%clk 0:01:40.6]} 33... d6 {[%clk 0:01:30.3]} 34. Kc4 {[%clk
0:01:38.2]} 34... Kd7 {[%clk 0:01:18.6]} 35. Kb5 {[%clk 0:01:38.4]} 35... Rb8+
{[%clk 0:01:16.5]} 36. Ka6 {[%clk 0:01:38.5]} 36... d5 {[%clk 0:01:05.8]} 37. a5
{[%clk 0:01:38.7]} 37... d4 {[%clk 0:01:04]} 38. Ka7 {[%clk 0:01:29.4]} 38...
Rb3 {[%clk 0:01:04.6]} 39. a6 {[%clk 0:01:05.8]} 39... d3 {[%clk 0:01:04.4]} 40.
Ra4 {[%clk 0:01:03.9]} 40... Kc6 {[%clk 0:00:59.4]} 41. Rd4 {[%clk 0:01:03.8]}
41... Kc5 {[%clk 0:00:58.3]} 42. Rd7 {[%clk 0:01:02.6]} 42... Kc4 {[%clk
0:00:55.7]} 43. Rc7+ {[%clk 0:00:49]} 43... Kd4 {[%clk 0:00:55.3]} 44. Rxh7
{[%clk 0:00:39]} 44... d2 {[%clk 0:00:45.3]} 45. g4 {[%clk 0:00:31.7]} 45... Ke4
{[%clk 0:00:40.9]} 46. Rd7 {[%clk 0:00:27.6]} 46... Rd3 {[%clk 0:00:41]} 47.
Rxd3 {[%clk 0:00:26.3]} 47... Kxd3 {[%clk 0:00:41.9]} 48. Kb8 {[%clk 0:00:23.9]}
48... d1=Q {[%clk 0:00:42.8]} 49. a7 {[%clk 0:00:24.5]} 49... Qb3+ {[%clk
0:00:42.4]} 50. Kc8 {[%clk 0:00:22.6]} 50... Qc4+ {[%clk 0:00:42.5]} 51. Kb7
{[%clk 0:00:23.2]} 51... Qb5+ {[%clk 0:00:42.9]} 52. Kc8 {[%clk 0:00:21.5]}
52... Qc6+ {[%clk 0:00:42.8]} 53. Kb8 {[%clk 0:00:21.8]} 53... Qb6+ {[%clk
0:00:43.4]} 54. Ka8 {[%clk 0:00:21.2]} 54... Kc4 {[%clk 0:00:41.8]} 55. h4
{[%clk 0:00:19.1]} 55... Kc5 {[%clk 0:00:42.3]} 56. h5 {[%clk 0:00:18.2]} 56...
Kc6 {[%clk 0:00:42.9]} 57. h6 {[%clk 0:00:18.7]} 57... Qb7# {[%clk 0:00:42.7]}
0-1

[Event "Late-Titled-Tuesday-Blitz-April-23-2024"]
[Site "Chess.com"]
[Date "2024.04.23"]
[Round "8"]
[White "enriquetejedor"]
[Black "emeli_chess"]
[Result "1/2-1/2"]
[WhiteElo "2737"]
[BlackElo "2483"]
[TimeControl "180+1"]
[EndTime "15:29:34 PDT"]
[Termination "Game drawn by repetition"]

1. c4 {[%clk 0:02:59.6]} 1... e5 {[%clk 0:02:59.3]} 2. Nc3 {[%clk 0:02:57.2]}
2... d6 {[%clk 0:02:59.6]} 3. e3 {[%clk 0:02:56.9]} 3... f5 {[%clk 0:02:59.8]}
4. d4 {[%clk 0:02:56]} 4... e4 {[%clk 0:02:59.6]} 5. h4 {[%clk 0:02:56.5]} 5...
Nf6 {[%clk 0:02:58.9]} 6. Nh3 {[%clk 0:02:56.8]} 6... Be7 {[%clk 0:02:56.8]} 7.
Nf4 {[%clk 0:02:56.8]} 7... c6 {[%clk 0:02:56]} 8. Be2 {[%clk 0:02:54.2]} 8...
O-O {[%clk 0:02:54.2]} 9. a3 {[%clk 0:02:52.1]} 9... a5 {[%clk 0:02:52.8]} 10.
b3 {[%clk 0:02:47.2]} 10... Bd7 {[%clk 0:02:43.9]} 11. Bb2 {[%clk 0:02:44.1]}
11... Na6 {[%clk 0:02:43.8]} 12. g3 {[%clk 0:02:42.3]} 12... Nc7 {[%clk
0:02:41]} 13. Kf1 {[%clk 0:02:41.7]} 13... Ne6 {[%clk 0:02:30.5]} 14. d5 {[%clk
0:02:38.5]} 14... Nxf4 {[%clk 0:02:28.8]} 15. gxf4 {[%clk 0:02:39.4]} 15... Be8
{[%clk 0:02:21.9]} 16. h5 {[%clk 0:02:39.1]} 16... h6 {[%clk 0:02:17.3]} 17. Qd4
{[%clk 0:02:36.5]} 17... Bf7 {[%clk 0:02:15.1]} 18. Rg1 {[%clk 0:02:30.2]} 18...
Bxh5 {[%clk 0:01:52]} 19. Bxh5 {[%clk 0:02:28.8]} 19... Nxh5 {[%clk 0:01:51.8]}
20. Nxe4 {[%clk 0:02:28]} 20... Bf6 {[%clk 0:01:46.3]} 21. Nxf6+ {[%clk
0:02:27.3]} 21... Qxf6 {[%clk 0:01:31.6]} 22. Qd2 {[%clk 0:02:16.5]} 22... Qh4
{[%clk 0:01:13.9]} 23. dxc6 {[%clk 0:02:11]} 23... Qh3+ {[%clk 0:01:04.9]} 24.
Ke2 {[%clk 0:02:06.8]} 24... Nxf4+ {[%clk 0:00:57]} 25. exf4 {[%clk 0:02:04.9]}
25... Rae8+ {[%clk 0:00:55.6]} 26. Kd1 {[%clk 0:02:04.9]} 26... Qxb3+ {[%clk
0:00:54.6]} 27. Qc2 {[%clk 0:02:02.3]} 27... Qf3+ {[%clk 0:00:49.1]} 28. Kc1
{[%clk 0:02:02.5]} 28... Qxf4+ {[%clk 0:00:48]} 29. Kb1 {[%clk 0:02:02.5]} 29...
Rf7 {[%clk 0:00:44.7]} 30. Ka2 {[%clk 0:01:55.5]} 30... bxc6 {[%clk 0:00:44.1]}
31. Rae1 {[%clk 0:01:55.4]} 31... Rb8 {[%clk 0:00:42.4]} 32. Rg3 {[%clk
0:01:52.5]} 32... Rfb7 {[%clk 0:00:41.5]} 33. Ba1 {[%clk 0:01:42.5]} 33... a4
{[%clk 0:00:35.8]} 34. Re2 {[%clk 0:01:38.7]} 34... Rb3 {[%clk 0:00:34.2]} 35.
Rxg7+ {[%clk 0:01:37]} 35... Kf8 {[%clk 0:00:33.4]} 36. Ree7 {[%clk 0:01:27.4]}
36... Qf3 {[%clk 0:00:14.2]} 37. Rgf7+ {[%clk 0:01:22.8]} 37... Kg8 {[%clk
0:00:14.5]} 38. Rg7+ {[%clk 0:00:42.3]} 38... Kf8 {[%clk 0:00:14.4]} 39. Ref7+
{[%clk 0:00:43]} 39... Ke8 {[%clk 0:00:14.6]} 40. Re7+ {[%clk 0:00:17.2]} 40...
Kf8 {[%clk 0:00:14.7]} 1/2-1/2

[Event "Late-Titled-Tuesday-Blitz-April-23-2024"]
[Site "Chess.com"]
[Date "2024.04.23"]
[Round "8"]
[White "Orest_Vovk"]
[Black "Abund"]
[Result "0-1"]
[WhiteElo "2569"]
[BlackElo "2759"]
[TimeControl "180+1"]
[EndTime "15:29:34 PDT"]
[Termination "Abund won by resignation"]

1. h4 {[%clk 0:02:52.7]} 1... Nf6 {[%clk 0:02:58]} 2. h5 {[%clk 0:02:52.5]} 2...
h6 {[%clk 0:02:57.9]} 3. Nc3 {[%clk 0:02:51.7]} 3... d5 {[%clk 0:02:57.6]} 4. e4
{[%clk 0:02:50.8]} 4... dxe4 {[%clk 0:02:47.9]} 5. Qe2 {[%clk 0:02:50.9]} 5...
Bf5 {[%clk 0:02:30.2]} 6. Qb5+ {[%clk 0:02:50.7]} 6... Bd7 {[%clk 0:02:20.6]} 7.
Qxb7 {[%clk 0:02:50.6]} 7... Nc6 {[%clk 0:02:19.1]} 8. Bb5 {[%clk 0:02:50.7]}
8... Rb8 {[%clk 0:02:11.8]} 9. Qa6 {[%clk 0:02:50.2]} 9... Nd4 {[%clk
0:01:55.2]} 10. Bxd7+ {[%clk 0:02:48.6]} 10... Qxd7 {[%clk 0:01:51.6]} 11. Qxa7
{[%clk 0:02:45.7]} 11... Rd8 {[%clk 0:01:41.5]} 12. Kd1 {[%clk 0:02:45.1]} 12...
e5 {[%clk 0:01:25.1]} 13. Rh4 {[%clk 0:02:30.4]} 13... Be7 {[%clk 0:01:04.5]}
14. Qa4 {[%clk 0:02:07]} 14... c6 {[%clk 0:01:01.9]} 15. Nxe4 {[%clk 0:01:58.5]}
15... Ng4 {[%clk 0:00:56.1]} 16. Nf3 {[%clk 0:00:19.8]} 16... Bxh4 {[%clk
0:00:37]} 17. Nxh4 {[%clk 0:00:16.9]} 17... O-O {[%clk 0:00:26.6]} 18. f3 {[%clk
0:00:13.1]} 18... Ne3+ {[%clk 0:00:20.6]} 19. dxe3 {[%clk 0:00:07.2]} 19... Nb3+
{[%clk 0:00:11.6]} 20. Ke2 {[%clk 0:00:05.2]} 20... Qd1+ {[%clk 0:00:11.3]} 21.
Kf2 {[%clk 0:00:05.6]} 21... Nxa1 {[%clk 0:00:11.3]} 22. Qxc6 {[%clk 0:00:03.6]}
22... Qxc1 {[%clk 0:00:06.4]} 23. Nf5 {[%clk 0:00:03.1]} 23... Qxc2+ {[%clk
0:00:05.7]} 24. Qxc2 {[%clk 0:00:02.6]} 24... Nxc2 {[%clk 0:00:06.6]} 25. Ne7+
{[%clk 0:00:03]} 25... Kh7 {[%clk 0:00:06.9]} 26. a3 {[%clk 0:00:03.6]} 26...
Rb8 {[%clk 0:00:06.5]} 27. b4 {[%clk 0:00:03.4]} 27... Nxa3 {[%clk 0:00:06.4]}
28. Nc6 {[%clk 0:00:02.6]} 28... Rb5 {[%clk 0:00:06]} 29. Nxe5 {[%clk
0:00:03.5]} 29... Rxe5 {[%clk 0:00:06.2]} 30. Nc5 {[%clk 0:00:03.9]} 30... Rxc5
{[%clk 0:00:06.5]} 31. bxc5 {[%clk 0:00:04.3]} 31... Rc8 {[%clk 0:00:07.4]} 0-1